lending/lending_fUSD_20240621
["ID","MTS","AMOUNT","RATE_DAILY","PERIOD"]
[330014127,1718934644590,-500.0,0.00013888,2]
[330014128,1718934644628,-1000.0,0.000139,2]
[330014129,1718934644642,-675.9885,0.000139,2]
[330014130,1718934644652,-3501.3885,0.000139,2]
[330014131,1718934644662,-156.4426312,0.000139,2]
[330014132,1718934644671,-166.65424544,0.000139,2]
[330014133,1718934644681,-197.05450067,0.000139,2]
[330014134,1718934644690,-1942.3179,0.000139,2]
[330014135,1718934644699,-1724.84575742,0.000139,2]
[330014136,1718934644708,-172.78,0.00013909,2]
[330014137,1718934644718,-3040.61027305,0.0001391,2]
[330014138,1718934644727,-297.26257402,0.00013999,2]
[330014139,1718934644737,-213771.58473424,0.00014,2]
[330014140,1718934645256,-901.13875665,0.00014,2]
[330014141,1718934645268,-370.113,0.00014,2]
[330014142,1718934645279,-2264.26216506,0.00014,2]
[330014143,1718934645291,-9431.128,0.00014,2]
[330014144,1718934645302,-451.5,0.00014,2]
[330014145,1718934645313,-191699.7268347,0.00014,2]
[330014146,1718934645325,-1165.39763693,0.00014,2]
[330014147,1718934645540,-1605.35180376,0.00014,2]
[330014157,1718934646725,-904.86546665,0.00014,2]
[330014159,1718934646736,-1025.1825039,0.00014,2]
[330014160,1718934646748,-9088.28416967,0.00014,2]
[330014162,1718934646760,-271659.75514856,0.00014,2]
[330014165,1718934646772,-1349.08580306,0.00014,2]
[330014188,1718934792745,200.0,0.0002595,120]
[330014189,1718934797200,1021.647716,0.0002595,120]
[330014190,1718934799226,200.0,0.00025999,120]
[330014194,1718935575662,200.11365174,0.00010933,2]
[330014217,1718935759252,751.12,0.00010619,2]
[330014220,1718935832683,-785.165961,0.00012,2]
[330014223,1718935832693,-150.09218164,0.00012201,2]
[330014228,1718935832707,-902.50081836,0.00012201,2]
[330014231,1718935832716,-4790.11802418,0.00012544,2]
[330014235,1718935832728,-397.56791311,0.00012544,2]
[330014237,1718935832739,-1074.32,0.00012544,2]
[330014239,1718935832750,-642.3977412,0.00012544,2]
[330014241,1718935832761,-302.11780374,0.00012544,2]
[330014243,1718935832772,-997.8724334,0.00012544,2]
[330014244,1718935832785,-456.76620795,0.00012544,2]
[330014245,1718935832796,-956.69375819,0.00012544,2]
[330014246,1718935832808,-7885.50373488,0.00012544,2]
[330014247,1718935833084,-1629.4257306,0.00012544,2]
[330014249,1718935833096,-3598.33665275,0.00012544,2]
[330014251,1718935833106,-152.75,0.00012548,2]
[330014253,1718935833115,-2998.35,0.00012549,2]
[330014255,1718935833124,-250.0,0.00012552,2]
[330014256,1718935833133,-186.5,0.00012552,2]
[330014257,1718935833143,-751.12,0.00012882,2]
[330014258,1718935833152,-500.0,0.0001298,2]
[330014259,1718935833161,-549.1849,0.0001298,2]
[330014260,1718935833170,-176.08541982,0.00013027,2]
[330014261,1718935833179,-155.51675453,0.00013079,2]
[330014262,1718935833188,-211.29861996,0.00013252,2]
[330014263,1718935833197,-695.16,0.00013261,2]
[330014264,1718935833206,-150.99,0.00013261,2]
[330014265,1718935833216,-499.99,0.00013265,2]
[330014266,1718935833225,-695.16,0.00013265,2]
[330014267,1718935833234,-695.16,0.00013268,2]
[330014268,1718935833243,-1206.01,0.00013268,2]
[330014269,1718935833252,-695.16,0.00013272,2]
[330014270,1718935833262,-695.16,0.00013275,2]
[330014271,1718935833271,-695.16,0.00013279,2]
[330014272,1718935833282,-695.16,0.00013282,2]
[330014273,1718935833291,-695.16,0.00013286,2]
[330014274,1718935833299,-695.16,0.00013289,2]
[330014275,1718935833308,-695.16,0.00013293,2]
[330014276,1718935833318,-695.16,0.00013296,2]
[330014277,1718935833327,-695.16,0.000133,2]
[330014278,1718935833336,-695.16,0.00013303,2]
[330014279,1718935833345,-695.16,0.00013307,2]
[330014280,1718935833354,-695.16,0.0001331,2]
[330014281,1718935833363,-3819.97136973,0.00013313,2]
[330014282,1718935833373,-695.16,0.00013314,2]
[330014283,1718935833382,-695.16,0.00013317,2]
[330014284,1718935833391,-695.16,0.00013321,2]
[330014285,1718935833399,-695.16,0.00013324,2]
[330014286,1718935833408,-695.16,0.00013328,2]
[330014287,1718935833418,-1000.0,0.00013337,2]
[330014288,1718935833427,-209.88552387,0.00013441,2]
[330014289,1718935833436,-235.1092,0.00013619,2]
[330014290,1718935833445,-247.00917619,0.00013698,2]
[330014291,1718935833454,-858.15,0.00013699,2]
[330014292,1718935833463,-155.18030221,0.00013699,2]
[330014293,1718935833473,-155.0,0.00013718,2]
[330014294,1718935833482,-568.41440098,0.00013719,2]
[330014295,1718935833491,-155.15815196,0.00013759,2]
[330014296,1718935833500,-689.92053766,0.00013789,2]
[330014297,1718935833509,-2374.79710101,0.00013799,2]
[330014298,1718935833519,-155.11300664,0.00013859,2]
[330014299,1718935833528,-2405.46267,0.0001386,2]
[330014300,1718935833539,-372.93587752,0.00013899,2]
[330014301,1718935833547,-1422.2305,0.000139,2]
[330014302,1718935833556,-15448.8088,0.000139,2]
[330014303,1718935833567,-17153.04222974,0.000139,2]
[330014304,1718935833580,-8592.18527026,0.000139,2]
[330014305,1718935833590,-267.8693,0.000139,2]
[330014306,1718935833599,-762.20120874,0.000139,2]
[330014308,1718935839056,-689.92053766,0.00013758,2]
[330014310,1718935839067,-155.0,0.00013758,2]
[330014312,1718935839077,-11646.85046798,0.000139,2]
[330014314,1718935839087,-1000.0,0.0001393,2]
[330014316,1718935839098,-1000.0,0.0001393,2]
[330014318,1718935839108,-1000.0,0.0001393,2]
[330014320,1718935839119,-1000.0,0.0001393,2]
[330014322,1718935839129,-1000.0,0.0001393,2]
[330014324,1718935839140,-1000.0,0.0001393,2]
[330014326,1718935839150,-1000.0,0.0001393,2]
[330014328,1718935839160,-1000.0,0.0001393,2]
[330014330,1718935839171,-1000.0,0.0001393,2]
[330014332,1718935839181,-1000.0,0.0001393,2]
[330014334,1718935839191,-1000.0,0.0001393,2]
[330014336,1718935839201,-1000.0,0.0001393,2]
[330014338,1718935839211,-1000.0,0.0001393,2]
[330014340,1718935839220,-1000.0,0.0001393,2]
[330014342,1718935839230,-1000.0,0.0001393,2]
[330014343,1718935839240,-1000.0,0.0001393,2]
[330014345,1718935839250,-1000.0,0.0001393,2]
[330014347,1718935839260,-1000.0,0.0001393,2]
[330014349,1718935839269,-1000.0,0.0001393,2]
[330014351,1718935839279,-1000.0,0.0001393,2]
[330014353,1718935839290,-1000.0,0.0001393,2]
[330014355,1718935839299,-1000.0,0.0001393,2]
[330014357,1718935839309,-1000.0,0.0001393,2]
[330014359,1718935839319,-1000.0,0.0001393,2]
[330014361,1718935839329,-1000.0,0.0001393,2]
[330014363,1718935839338,-1000.0,0.0001393,2]
[330014365,1718935839351,-1000.0,0.0001393,2]
[330014367,1718935839361,-1000.0,0.0001393,2]
[330014370,1718935839371,-1000.0,0.0001393,2]
[330014372,1718935839380,-1000.0,0.0001393,2]
[330014373,1718935839390,-387.3175,0.0001393,2]
[330014376,1718935839400,-500.0,0.0001393,2]
[330014378,1718935839410,-500.0,0.0001393,2]
[330014380,1718935839420,-500.0,0.0001393,2]
[330014382,1718935839431,-500.0,0.0001393,2]
[330014383,1718935839440,-531.1134,0.0001393,2]
[330014386,1718935839451,-155.0,0.00013989,2]
[330014388,1718935839462,-3406.39,0.0001399,2]
[330014390,1718935839472,-351.77,0.0001399,3]
[330014392,1718935839483,-197.62395641,0.0001399,2]
[330014394,1718935839493,-155.0,0.00013999,2]
[330014396,1718935839504,-21026.73856819,0.00014,2]
[330014470,1718935840296,-659.75132017,0.00014,2]
[330014473,1718935840308,-32634.13552709,0.00014,2]
[330014475,1718935840320,-182417.27809999,0.00014,2]
[330014477,1718935840332,-26044.18909756,0.00014,2]
[330014479,1718935840343,-253.6567929,0.00014,2]
[330014555,1718935841095,-353.9927109,0.00014,2]
[330014558,1718935841107,-499.9996419,0.00014,2]
[330014560,1718935841118,-45253.7360279,0.00014,2]
[330014561,1718935841129,-3403.99439998,0.00014,2]
[330014562,1718935841142,-259.02851092,0.00014,2]
[330014563,1718935841154,-10156.91003577,0.00014,2]
[330014607,1718935841567,-157.80092933,0.00013989,2]
[330014609,1718935841577,-54156.08042958,0.00014,2]
[330014611,1718935841586,-45339.88726953,0.00014,2]
[330014735,1718935843980,-1340.00000071,0.00014,2]
[330014737,1718935843992,-6477.58422,0.00014,2]
[330014740,1718935844003,-421.401,0.00014,2]
[330014754,1718935844518,-887.6525,0.00014,2]
[330014755,1718935844530,-35075.18317811,0.00014,2]
[330014756,1718935844543,-11070.42145773,0.00014,2]
[330014757,1718935844554,-1798.58275583,0.00014,2]
[330014758,1718935844565,-775.0,0.00014,2]
[330014759,1718935844576,-5068.55999995,0.00014,2]
[330014760,1718935844588,-654.02,0.00014,2]
[330014761,1718935844600,-495.82116346,0.00014,2]
[330014762,1718935844611,-15579.20194805,0.00014,2]
[330014763,1718935844622,-1118.64999998,0.00014,2]
[330014764,1718935844633,-137184.1411422,0.00014,2]
[330014765,1718935844645,-311.16736549,0.00014,2]
[330014766,1718935844656,-767.44684922,0.00014,2]
[330014783,1718935847337,-3728.44750531,0.00012,2]
[330014784,1718935847348,-2186.753,0.00012,2]
[330014785,1718935847359,-1300.0000002,0.00012,2]
[330014786,1718935847371,-647.51,0.00012,2]
[330014787,1718935847383,-483.87719183,0.00012,2]
[330014788,1718935847399,-11653.41230266,0.00012,2]
[330014789,1718935847409,-803.93178713,0.00014,2]
[330014790,1718935847421,-1900.73803645,0.00014,2]
[330014791,1718935847431,-167.31,0.00014262,2]
[330014792,1718935847440,-847.91,0.00014262,2]
[330014793,1718935847450,-191.33,0.0001429,2]
[330014794,1718935847460,-10000.0,0.00014368,2]
[330014795,1718935847469,-211.0,0.00014888,2]
[330014796,1718935847479,-150.909,0.00014888,2]
[330014797,1718935847488,-150.162,0.00014888,2]
[330014798,1718935847498,-150.596,0.00014888,2]
[330014799,1718935847508,-150.0,0.00014888,2]
[330014800,1718935847517,-617.0,0.00014888,2]
[330014801,1718935847526,-500.926,0.00014888,2]
[330014803,1718935847536,-187.98,0.00014888,2]
[330014805,1718935847547,-815.431,0.00014888,2]
[330014807,1718935847557,-12409.05167663,0.00014899,2]
[330014808,1718935847568,-847.91,0.00014975,2]
[330014809,1718935847578,-2000.0,0.00015,2]
[330014810,1718935847588,-490.0,0.00015,2]
[330014811,1718935847598,-13451.0,0.00015,2]
[330014812,1718935847608,-306.72,0.00015,2]
[330014813,1718935847617,-490.0,0.00015,2]
[330014814,1718935847627,-1006.22,0.00015,2]
[330014815,1718935847636,-1006.22,0.00015,2]
[330014816,1718935847646,-1751.0,0.00015,2]
[330014817,1718935847668,-1000.0,0.00015004,2]
[330014818,1718935847679,-180.0,0.00015068,2]
[330014819,1718935847689,-300.0,0.00015068,2]
[330014820,1718935847700,-751.12,0.00015146,2]
[330014821,1718935847710,-2998.35,0.00015289,2]
[330014822,1718935847720,-153.55,0.00015514,2]
[330014823,1718935847730,-153.55,0.00015519,2]
[330014824,1718935847741,-153.55,0.00015524,2]
[330014825,1718935847751,-153.55,0.00015529,2]
[330014826,1718935847760,-153.55,0.00015535,2]
[330014827,1718935847770,-153.55,0.0001554,2]
[330014828,1718935847779,-153.55,0.00015545,2]
[330014829,1718935847789,-153.55,0.0001555,2]
[330014830,1718935847801,-153.55,0.00015555,2]
[330014831,1718935847810,-153.55,0.00015561,2]
[330014832,1718935847826,-153.55,0.00015566,2]
[330014833,1718935847835,-153.55,0.00015571,2]
[330014834,1718935847845,-153.55,0.00015576,2]
[330014835,1718935847856,-227.39050714,0.0001558,2]
[330014836,1718935847867,-153.55,0.00015581,2]
[330014837,1718935847877,-153.55,0.00015586,2]
[330014838,1718935847887,-153.55,0.00015592,2]
[330014839,1718935847897,-847.91,0.00015689,2]
[330014840,1718935847908,-172.78,0.00015759,2]
[330014841,1718935847918,-167.0,0.00015831,2]
[330014842,1718935847927,-152.356893,0.00015888,2]
[330014843,1718935847937,-12409.05167663,0.00015898,2]
[330014844,1718935847947,-1339.7548544,0.00015999,2]
[330014845,1718935847957,-2000.0,0.00016,2]
[330014846,1718935847967,-2908.382016,0.00016,2]
[330014847,1718935847976,-202.369141,0.00016,2]
[330014848,1718935847986,-1762.5918,0.00016016,2]
[330014849,1718935847995,-151.0,0.00016116,2]
[330014850,1718935848005,-153.449864,0.00016116,2]
[330014851,1718935848015,-9999.99,0.00016116,2]
[330014852,1718935848025,-1006.22,0.00016245,2]
[330014853,1718935848035,-1006.22,0.00016245,2]
[330014854,1718935848046,-151.0,0.00016306,2]
[330014855,1718935848056,-155.94167811,0.00016338,2]
[330014856,1718935848066,-4107.33115749,0.00016338,2]
[330014857,1718935848076,-167.0,0.00016354,2]
[330014858,1718935848085,-2405.46268,0.0001636,2]
[330014859,1718935848095,-430.43632189,0.00016364,2]
[330014860,1718935848104,-306.72,0.00016365,2]
[330014861,1718935848114,-339.5984477,0.00016401,2]
[330014862,1718935848124,-847.91,0.00016402,2]
[330014863,1718935848135,-1492.76253249,0.00016437,2]
[330014864,1718935848145,-152.174277,0.00016438,2]
[330014865,1718935848155,-335.518756,0.00016438,2]
[330014866,1718935848165,-335.518756,0.00016438,2]
[330014867,1718935848175,-151.0,0.00016438,2]
[330014868,1718935848186,-300.0,0.00016438,2]
[330014869,1718935848196,-1000.0,0.00016671,2]
[330014870,1718935848206,-215.92,0.00016712,2]
[330014871,1718935848216,-229.30046362,0.00016869,2]
[330014872,1718935848226,-167.0,0.00016876,2]
[330014873,1718935848236,-12409.05167663,0.00016897,2]
[330014874,1718935848246,-151.0,0.00016897,2]
[330014875,1718935848256,-185.898797,0.00016897,2]
[330014876,1718935848266,-151.0,0.00016897,2]
[330014877,1718935848276,-151.0,0.00016897,2]
[330014878,1718935848286,-151.0,0.00016897,2]
[330014879,1718935848298,-151.0,0.00016897,2]
[330014880,1718935848308,-151.0,0.00016897,2]
[330014881,1718935848317,-152.322119,0.00016897,2]
[330014882,1718935848327,-151.0,0.00016897,2]
[330014883,1718935848337,-151.0,0.00016897,2]
[330014884,1718935848346,-151.0,0.00016897,2]
[330014885,1718935848356,-9054.223594,0.00016897,2]
[330014886,1718935848366,-151.0,0.00016897,2]
[330014887,1718935848375,-9054.223594,0.00016897,2]
[330014888,1718935848385,-233.412119,0.00016897,2]
[330014889,1718935848395,-151.0,0.00016897,2]
[330014890,1718935848404,-151.0,0.00016897,2]
[330014891,1718935848414,-151.0,0.00016897,2]
[330014892,1718935848424,-151.0,0.00016897,2]
[330014893,1718935848433,-151.0,0.00016897,2]
[330014894,1718935848443,-151.0,0.00016897,2]
[330014895,1718935848452,-871.70785,0.00016897,2]
[330014896,1718935848463,-871.70785,0.00016897,2]
[330014897,1718935848472,-151.0,0.00016897,2]
[330014898,1718935848482,-151.0,0.00016897,2]
[330014899,1718935848492,-151.0,0.00016897,2]
[330014900,1718935848502,-151.0,0.00016897,2]
[330014901,1718935848511,-151.0,0.00016897,2]
[330014902,1718935848521,-151.0,0.00016897,2]
[330014903,1718935848531,-2203.19223415,0.000169,2]
[330014904,1718935848541,-4107.3311574,0.00016934,2]
[330014905,1718935848553,-151.0,0.00016934,2]
[330014906,1718935848563,-151.0,0.00016934,2]
[330014907,1718935848573,-151.0,0.00016934,2]
[330014908,1718935848583,-289.35484759,0.00016969,2]
[330014909,1718935848592,-2000.0,0.00017,2]
[330014910,1718935848602,-500.0,0.00017,2]
[330014911,1718935848612,-500.0,0.00017,2]
[330014912,1718935848622,-847.91,0.00017115,2]
[330014913,1718935848632,-167.0,0.00017399,2]
[330014914,1718935848641,-751.12,0.0001741,2]
[330014915,1718935848651,-1420.719681,0.0001749,2]
[330014916,1718935848661,-1006.22,0.0001749,2]
[330014917,1718935848671,-151.0,0.00017529,2]
[330014918,1718935848681,-151.0,0.00017529,2]
[330014919,1718935848690,-151.0,0.00017529,2]
[330014920,1718935848700,-151.0,0.00017529,2]
[330014921,1718935848710,-166.288676,0.00017529,2]
[330014922,1718935848719,-166.288676,0.00017529,2]
[330014923,1718935848729,-151.0,0.00017529,2]
[330014924,1718935848738,-151.520976,0.00017529,2]
[330014925,1718935848749,-151.0,0.00017529,2]
[330014926,1718935848758,-151.0,0.00017529,2]
[330014927,1718935848767,-151.0,0.00017529,2]
[330014928,1718935848777,-151.0,0.00017529,2]
[330014929,1718935848787,-4107.3311574,0.00017529,2]
[330014930,1718935848797,-359.66740101,0.00017533,2]
[330014931,1718935848806,-306.72,0.0001773,2]
[330014932,1718935848816,-537.2243622,0.00017861,2]
[330014933,1718935848828,-191.33,0.00017862,2]
[330014934,1718935848838,-155.92419781,0.00017887,2]
[330014935,1718935848848,-150.0,0.00017888,2]
[330014936,1718935848859,-150.098,0.00017888,2]
[330014937,1718935848869,-812.0,0.00017888,2]
[330014938,1718935848879,-12409.05167663,0.00017896,2]
[330014939,1718935848889,-151.0,0.00017896,2]
[330014940,1718935848900,-151.0,0.00017896,2]
[330014941,1718935848912,-151.0,0.00017896,2]
[330014942,1718935848922,-259.839072,0.00017896,2]
[330014943,1718935848932,-155.850575,0.00017896,2]
[330014944,1718935848941,-151.0,0.00017896,2]
[330014945,1718935848951,-221.123635,0.00017896,2]
[330014946,1718935848961,-155.850575,0.00017896,2]
[330014947,1718935848973,-164.547917,0.00017896,2]
[330014948,1718935848983,-151.0,0.00017896,2]
[330014949,1718935848993,-151.0,0.00017896,2]
[330014950,1718935849002,-367.171406,0.00017896,2]
[330014951,1718935849012,-367.171406,0.00017896,2]
[330014952,1718935849021,-151.0,0.00017896,2]
[330014953,1718935849031,-209.482424,0.00017896,2]
[330014954,1718935849041,-157.324885,0.00017896,2]
[330014955,1718935849052,-151.0,0.00017896,2]
[330014956,1718935849061,-151.0,0.00017896,2]
[330014957,1718935849071,-151.0,0.00017896,2]
[330014958,1718935849081,-167.0,0.00017921,2]
[330014959,1718935849092,-239.99999822,0.00018,2]
[330014960,1718935849102,-2000.0,0.00018,2]
[330014961,1718935849112,-155.0,0.00018,2]
[330014962,1718935849122,-13066.94788544,0.00018,4]
[330014963,1718935849137,-1004.84499967,0.00018,4]
[330014964,1718935849149,-40669.72711489,0.00018,4]
[330014965,1718935849159,-151.0,0.00018,2]
[330014966,1718935849169,-151.0,0.00018,2]
[330014967,1718935849179,-151.0,0.00018,2]
[330014968,1718935849189,-151.0,0.00018,2]
[330014969,1718935849198,-317.0,0.00018,5]
[330014970,1718935849208,-151.0,0.00018,2]
[330014971,1718935849218,-151.0,0.00018,2]
[330014972,1718935849228,-151.0,0.00018,2]
[330014973,1718935849238,-151.0,0.00018,2]
[330014974,1718935849248,-151.0,0.00018,2]
[330014975,1718935849258,-151.0,0.00018,2]
[330014976,1718935849267,-200.0,0.00018,2]
[330014977,1718935849277,-754.408074,0.00018,2]
[330014978,1718935849287,-219.465706,0.00018,2]
[330014979,1718935849299,-219.465706,0.00018,2]
[330014980,1718935849308,-154.71033,0.00018,2]
[330014981,1718935849318,-622.908377,0.00018,2]
[330014982,1718935849327,-622.908377,0.00018,2]
[330014983,1718935849337,-335.518756,0.00018,2]
[330014984,1718935849346,-335.518756,0.00018,2]
[330014985,1718935849357,-151.0,0.00018,2]
[330014986,1718935849367,-151.0,0.00018,2]
[330014987,1718935849376,-151.0,0.00018,2]
[330014988,1718935849387,-151.0,0.00018,2]
[330014989,1718935849396,-151.0,0.00018,2]
[330014990,1718935849406,-151.0,0.00018,2]
[330014991,1718935849415,-151.0,0.00018,2]
[330014992,1718935849424,-151.0,0.00018,2]
[330014993,1718935849434,-9054.223594,0.00018,2]
[330014994,1718935849444,-151.0,0.00018,2]
[330014995,1718935849454,-9054.223594,0.00018,2]
[330014996,1718935849463,-151.0,0.00018,2]
[330014997,1718935849473,-151.0,0.00018,2]
[330014998,1718935849483,-151.0,0.00018,2]
[330014999,1718935849492,-151.0,0.00018,2]
[330015000,1718935849501,-151.0,0.00018,2]
[330015001,1718935849511,-151.0,0.00018,2]
[330015002,1718935849520,-871.70785,0.00018,2]
[330015003,1718935849530,-871.70785,0.00018,2]
[330015004,1718935849540,-151.0,0.00018,2]
[330015005,1718935849551,-151.0,0.00018,2]
[330015006,1718935849560,-151.0,0.00018,2]
[330015007,1718935849570,-151.0,0.00018,2]
[330015008,1718935849579,-151.0,0.00018,2]
[330015009,1718935849588,-151.0,0.00018,2]
[330015010,1718935849598,-1043.25872871,0.00018029,2]
[330015011,1718935849610,-306.21779093,0.00018029,2]
[330015012,1718935849621,-880.88,0.00018029,2]
[330015013,1718935849633,-767.99348036,0.00018029,2]
[330015014,1718935849643,-137.73423721,0.00018055,2]
[330015015,1718935849654,-219.89576279,0.00018055,2]
[330015016,1718935849665,-157.38423721,0.00018055,2]
[330015017,1718935849676,-670.5,0.00018055,2]
[330015018,1718935849688,-21.12576279,0.00018055,2]
[330015019,1718935849698,-164.53,0.00018055,2]
[330015020,1718935849708,-150.0,0.00018055,2]
[330015021,1718935849718,-354.14,0.00018055,2]
[330015022,1718935849727,-289.95,0.00018055,2]
[330015023,1718935849738,-164.53,0.00018055,2]
[330015024,1718935849748,-150.0,0.00018055,2]
[330015025,1718935849757,-150.0,0.00018055,2]
[330015026,1718935849767,-354.14,0.00018055,2]
[330015027,1718935849776,-164.53,0.00018055,2]
[330015028,1718935849786,-150.0,0.00018055,2]
[330015029,1718935849796,-354.14,0.00018055,2]
[330015030,1718935849808,-150.0,0.00018055,2]
[330015031,1718935849818,-164.53,0.00018055,2]
[330015032,1718935849831,-150.0,0.00018055,2]
[330015033,1718935849841,-354.14,0.00018055,2]
[330015034,1718935849852,-157.16,0.00018055,2]
[330015035,1718935849863,-354.14,0.00018055,2]
[330015036,1718935849873,-321.13,0.00018055,2]
[330015037,1718935849883,-4107.3311574,0.00018125,2]
[330015038,1718935849892,-1000.0,0.00018338,2]
[330015039,1718935849903,-229.3004636,0.00018374,2]
[330015040,1718935849913,-167.0,0.00018444,2]
[330015041,1718935849923,-317.0,0.000185,6]
[330015042,1718935849932,-770.16178988,0.00018721,2]
[330015043,1718935849944,-524.35130645,0.00018721,2]
[330015044,1718935849956,-2812.81806107,0.00018721,2]
[330015045,1718935849965,-153.33012,0.00018721,2]
[330015046,1718935849975,-151.0,0.00018721,2]
[330015047,1718935849984,-151.0,0.00018721,2]
[330015048,1718935849994,-151.0,0.00018721,2]
[330015049,1718935850004,-166.288676,0.00018721,2]
[330015050,1718935850013,-166.288676,0.00018721,2]
[330015051,1718935850023,-151.0,0.00018721,2]
[330015052,1718935850033,-151.0,0.00018721,2]
[330015053,1718935850043,-151.0,0.00018721,2]
[330015054,1718935850054,-151.0,0.00018721,2]
[330015055,1718935850063,-151.0,0.00018721,2]
[330015056,1718935850072,-151.0,0.00018721,2]
[330015057,1718935850082,-151.0,0.00018721,2]
[330015058,1718935850092,-155.850575,0.00018721,2]
[330015059,1718935850104,-162.416881,0.00018721,2]
[330015060,1718935850113,-155.850575,0.00018721,2]
[330015061,1718935850122,-151.0,0.00018721,2]
[330015062,1718935850132,-151.0,0.00018721,2]
[330015063,1718935850141,-367.171406,0.00018721,2]
[330015064,1718935850151,-367.171406,0.00018721,2]
[330015065,1718935850160,-151.0,0.00018721,2]
[330015066,1718935850170,-151.0,0.00018721,2]
[330015067,1718935850179,-151.0,0.00018721,2]
[330015068,1718935850189,-155.593512,0.00018721,2]
[330015069,1718935850199,-153.246255,0.00018721,2]
[330015070,1718935850209,-184.59348,0.00018721,2]
[330015071,1718935850218,-184.59348,0.00018721,2]
[330015072,1718935850228,-473.509951,0.00018721,2]
[330015073,1718935850238,-473.509951,0.00018721,2]
[330015074,1718935850247,-1006.22,0.00018735,2]
[330015075,1718935850257,-1449.95,0.00018849,30]
[330015076,1718935850267,-2405.46268,0.0001886,2]
[330015077,1718935850276,-846.7,0.00018877,2]
[330015078,1718935850286,-150.62,0.00018877,2]
[330015079,1718935850295,-532.52,0.00018877,2]
[330015080,1718935850310,-150.0,0.00018877,2]
[330015081,1718935850321,-152.3,0.00018877,2]
[330015082,1718935850331,-150.0,0.00018877,2]
[330015083,1718935850340,-164.48,0.00018877,2]
[330015084,1718935850352,-354.02,0.00018877,2]
[330015085,1718935850362,-150.0,0.00018877,2]
[330015086,1718935850372,-150.0,0.00018877,2]
[330015087,1718935850382,-362.2415744,0.00018877,2]
[330015088,1718935851143,-165.1984256,0.00018877,2]
[330015089,1718935851154,-164.53,0.00018877,2]
[330015090,1718935851165,-150.0,0.00018877,2]
[330015091,1718935851174,-708.04,0.00018877,2]
[330015092,1718935851183,-423.49,0.00018877,2]
[330015093,1718935851193,-150.63,0.00018877,2]
[330015094,1718935851203,-423.49,0.00018877,2]
[330015095,1718935851212,-365.15377166,0.00018877,2]
[330015096,1718935851224,-162.28622834,0.00018877,2]
[330015097,1718935851233,-150.0,0.00018877,2]
[330015098,1718935851242,-81.48255837,0.00018877,2]
[330015099,1718935851332,-254.00218558,0.00013719,2]
[330015100,1718935851344,-314.41221541,0.00013719,2]
[330015101,1718935851354,-83.04744163,0.00018877,2]
[330015102,1718935851363,-150.0,0.00018877,2]
[330015103,1718935851373,-150.0,0.00018877,2]
[330015104,1718935851383,-303.37038789,0.00018877,2]
[330015105,1718935851395,-50.76961211,0.00018877,2]
[330015106,1718935851404,-377.78830328,0.00018877,2]
[330015107,1718935851415,-45.70169672,0.00018877,2]
[330015108,1718935851424,-150.0,0.00018877,2]
[330015109,1718935851434,-150.0,0.00018877,2]
[330015110,1718935851444,-33.0085212,0.00018877,2]
[330015111,1718935992891,200.0,0.0002576,120]